fUST/lending_fUST_20250228
["ID","MTS","AMOUNT","RATE_DAILY","PERIOD"]
[354805986,1740708651831,-502.49116735,0.00056986,120]
[354805988,1740708651840,-500.0,0.00056986,120]
[354805990,1740708651849,-762.96,0.00056986,120]
[354805991,1740708651859,-534.31612942,0.00056986,120]
[354805993,1740708651868,-526.29,0.00056986,120]
[354805995,1740708651878,-500.0,0.00056986,120]
[354805997,1740708651891,-815.25,0.00056986,120]
[354805999,1740708651901,-500.0,0.00056986,120]
[354806001,1740708651910,-150.44205966,0.00056986,120]
[354806003,1740708651919,-500.0,0.00056986,120]
[354806005,1740708651930,-500.0,0.00056986,120]
[354806006,1740708651939,-500.0,0.00056986,120]
[354806008,1740708651949,-713.19,0.00056986,120]
[354806010,1740708651958,-585.19046684,0.00056986,120]
[354806012,1740708651967,-500.0,0.00056986,120]
[354806014,1740708651977,-500.0,0.00056986,120]
[354806016,1740708651986,-500.0,0.00056986,120]
[354806017,1740708651996,-500.0,0.00056986,120]
[354806019,1740708652005,-500.0,0.00056986,120]
[354806021,1740708652014,-1346.56,0.00056986,70]
[354806023,1740708652024,-500.0,0.00056986,120]
[354806025,1740708652033,-1272.78,0.00056986,120]
[354806027,1740708652042,-2845.45,0.00056986,120]
[354806029,1740708652052,-792.5,0.00056986,120]
[354806031,1740708652061,-500.0,0.00056986,120]
[354806032,1740708652070,-500.0,0.00056986,120]
[354806034,1740708652079,-500.0,0.00056986,120]
[354806036,1740708652088,-1163.13,0.00056986,120]
[354806038,1740708652098,-500.0,0.00056986,120]
[354806040,1740708652107,-804.19,0.00056986,120]
[354806042,1740708652116,-825.4,0.00056986,120]
[354806044,1740708652126,-500.0,0.00056986,120]
[354806046,1740708652136,-3182.71,0.00056986,120]
[354806047,1740708652145,-4410.76,0.00056986,120]
[354806049,1740708652155,-500.0,0.00056986,120]
[354806051,1740708652165,-5592.61,0.00056986,120]
[354806053,1740708652174,-1251.39,0.00056986,120]
[354806055,1740708652184,-500.0,0.00056986,120]
[354806057,1740708652193,-500.0,0.00056986,120]
[354806058,1740708652203,-609.59512301,0.00056986,120]
[354806060,1740708652213,-500.0,0.00056986,120]
[354806062,1740708652222,-1663.34,0.00056986,120]
[354806064,1740708652232,-506.68,0.00056986,120]
[354806066,1740708652241,-1657.91,0.00056986,120]
[354806068,1740708652251,-500.0,0.00056986,120]
[354806070,1740708652261,-980.46,0.00056986,120]
[354806072,1740708652270,-500.0,0.00056986,120]
[354806074,1740708652280,-588.72,0.00056986,120]
[354806076,1740708652290,-500.0,0.00056986,120]
[354806078,1740708652300,-649.83,0.00056986,120]
[354806080,1740708652309,-41368.51,0.00056986,7]
[354806082,1740708652319,-783.89,0.00056986,120]
[354806084,1740708652328,-648.51562485,0.00056986,120]
[354806085,1740708652337,-715.34,0.00056986,120]
[354806087,1740708652347,-571.74,0.00056986,120]
[354806089,1740708652357,-737.26,0.00056986,120]
[354806091,1740708652367,-500.0,0.00056986,120]
[354806093,1740708652378,-599.26,0.00056986,120]
[354806095,1740708652388,-2085.65,0.00056986,120]
[354806097,1740708652397,-6593.63,0.00056986,7]
[354806099,1740708652407,-500.0,0.00056986,120]
[354806101,1740708652416,-500.0,0.00056986,120]
[354806103,1740708652425,-4095.1,0.00056986,120]
[354806105,1740708652437,-637.0298435,0.00056986,120]
[354806107,1740708652446,-686.15,0.00056986,120]
[354806109,1740708652456,-500.0,0.00056986,120]
[354806110,1740708652465,-8480.39,0.00056986,120]
[354806112,1740708652475,-826.34,0.00056986,120]
[354806114,1740708652483,-500.0,0.00056986,120]
[354806116,1740708652493,-1860.24,0.00056986,120]
[354806118,1740708652505,-274.0,0.00057,120]
[354806120,1740708652515,-300.0,0.000571,31]
[354806122,1740708652525,-158.19,0.00057434,120]
[354806124,1740708652534,-198.83,0.00057434,120]
[354806126,1740708652543,-173.14,0.00057434,120]
[354806128,1740708652553,-4750.49,0.00057479,120]
[354806130,1740708652563,-151.0,0.000575,29]
[354806132,1740708652572,-500.0,0.00057534,120]
[354806133,1740708652581,-500.0,0.00057534,120]
[354806135,1740708652591,-500.0,0.00057534,120]
[354806137,1740708652601,-500.0,0.00057534,120]
[354806139,1740708652610,-391.76626227,0.00057534,2]
[354806141,1740708652620,-292.48306264,0.00057534,120]
[354806143,1740708652629,-500.0,0.00057534,120]
[354806145,1740708652638,-500.0,0.00057534,120]
[354806147,1740708652647,-500.0,0.00057534,120]
[354806149,1740708652656,-500.0,0.00057534,120]
[354806151,1740708652666,-500.0,0.00057534,120]
[354806153,1740708652675,-500.0,0.00057534,120]
[354806155,1740708652687,-600.0,0.00057534,120]
[354806157,1740708652696,-500.0,0.00057534,120]
[354806158,1740708652706,-500.0,0.00057534,120]
[354806160,1740708652715,-705.23,0.00057534,120]
[354806162,1740708652724,-500.0,0.00057534,120]
[354806164,1740708652734,-500.0,0.00057534,120]
[354806166,1740708652743,-500.0,0.00057534,120]
[354806168,1740708652754,-500.0,0.00057534,120]
[354806170,1740708652763,-548.2,0.00057534,120]
[354806172,1740708652772,-567.02,0.00057534,120]
[354806174,1740708652781,-500.0,0.00057534,120]
[354806176,1740708652790,-500.0,0.00057534,120]
[354806178,1740708652799,-500.0,0.00057534,120]
[354806180,1740708652809,-840.65,0.00057534,120]
[354806182,1740708652819,-500.0,0.00057534,120]
[354806184,1740708652829,-500.0,0.00057534,120]
[354806185,1740708652838,-500.0,0.00057534,120]
[354806187,1740708652847,-500.0,0.00057534,120]
[354806189,1740708652857,-500.0,0.00057534,120]
[354806191,1740708652866,-762.96,0.00057534,120]
[354806193,1740708652878,-500.0,0.00057534,120]
[354806195,1740708652889,-815.25,0.00057534,120]
[354806197,1740708652898,-500.0,0.00057534,120]
[354806199,1740708652907,-500.0,0.00057534,120]
[354806201,1740708652916,-496.618955,0.00057534,120]
[354806203,1740708652927,-476.64696603,0.00057534,120]
[354806205,1740708652936,-713.19,0.00057534,120]
[354806206,1740708652945,-500.0,0.00057534,120]
[354806208,1740708652955,-500.0,0.00057534,120]
[354806210,1740708652964,-323.48732887,0.00057534,120]
[354806212,1740708652973,-500.0,0.00057534,120]
[354806214,1740708652983,-500.0,0.00057534,120]
[354806216,1740708652992,-1346.56,0.00057534,75]
[354806218,1740708653002,-302.70402531,0.00057534,120]
[354806220,1740708653011,-1272.78,0.00057534,120]
[354806222,1740708653020,-2845.45,0.00057534,120]
[354806224,1740708653029,-792.5,0.00057534,120]
[354806226,1740708653038,-500.0,0.00057534,120]
[354806228,1740708653047,-500.0,0.00057534,120]
[354806230,1740708653057,-500.0,0.00057534,120]
[354806232,1740708653065,-1163.13,0.00057534,120]
[354806233,1740708653074,-500.0,0.00057534,120]
[354806235,1740708653083,-804.19,0.00057534,120]
[354806237,1740708653092,-825.4,0.00057534,120]
[354806239,1740708653102,-500.0,0.00057534,120]
[354806241,1740708653111,-3182.71,0.00057534,120]
[354806243,1740708653120,-4410.76,0.00057534,120]
[354806245,1740708653129,-500.0,0.00057534,120]
[354806247,1740708653138,-5592.61,0.00057534,120]
[354806249,1740708653149,-1251.39,0.00057534,120]
[354806251,1740708653158,-500.0,0.00057534,120]
[354806253,1740708653167,-500.0,0.00057534,120]
[354806255,1740708653176,-500.0,0.00057534,120]
[354806257,1740708653185,-1663.34,0.00057534,120]
[354806259,1740708653195,-506.68,0.00057534,120]
[354806261,1740708653204,-1657.91,0.00057534,120]
[354806263,1740708653213,-500.0,0.00057534,120]
[354806264,1740708653222,-980.46,0.00057534,120]
[354806266,1740708653232,-500.0,0.00057534,120]
[354806268,1740708653241,-588.72,0.00057534,120]
[354806270,1740708653252,-500.0,0.00057534,120]
[354806272,1740708653262,-649.83,0.00057534,120]
[354806274,1740708653271,-41368.51,0.00057534,7]
[354806276,1740708653280,-783.89,0.00057534,120]
[354806278,1740708653289,-715.34,0.00057534,120]
[354806280,1740708653299,-571.74,0.00057534,120]
[354806282,1740708653308,-737.26,0.00057534,120]
[354806284,1740708653317,-500.0,0.00057534,120]
[354806286,1740708653326,-599.26,0.00057534,120]
[354806288,1740708653335,-2085.65,0.00057534,120]
[354806290,1740708653345,-6593.63,0.00057534,7]
[354806292,1740708653354,-500.0,0.00057534,120]
[354806294,1740708653363,-500.0,0.00057534,120]
[354806296,1740708653372,-4095.1,0.00057534,120]
[354806297,1740708653381,-686.15,0.00057534,120]
[354806299,1740708653392,-500.0,0.00057534,120]
[354806301,1740708653401,-8480.39,0.00057534,120]
[354806303,1740708653410,-826.34,0.00057534,120]
[354806305,1740708653419,-500.0,0.00057534,120]
[354806307,1740708653429,-1860.24,0.00057534,120]
[354806309,1740708653438,-500.0,0.00058082,120]
[354806311,1740708653447,-500.0,0.00058082,120]
[354806313,1740708653456,-500.0,0.00058082,120]
[354806315,1740708653465,-500.0,0.00058082,120]
[354806317,1740708653475,-164.15213188,0.00058082,120]
[354806319,1740708653484,-500.0,0.00058082,120]
[354806321,1740708653493,-500.0,0.00058082,120]
[354806323,1740708653504,-500.0,0.00058082,120]
[354806324,1740708653513,-500.0,0.00058082,120]
[354806326,1740708653522,-406.91193258,0.00058082,120]
[354806328,1740708653532,-500.0,0.00058082,120]
[354806330,1740708653541,-500.0,0.00058082,120]
[354806332,1740708653550,-705.23,0.00058082,120]
[354806334,1740708653559,-500.0,0.00058082,120]
[354806336,1740708653568,-500.0,0.00058082,120]
[354806338,1740708653577,-500.0,0.00058082,120]
[354806340,1740708653586,-500.0,0.00058082,120]
[354806342,1740708653596,-548.2,0.00058082,120]
[354806343,1740708653605,-567.02,0.00058082,120]
[354806345,1740708653614,-500.0,0.00058082,120]
[354806347,1740708653624,-500.0,0.00058082,120]
[354806349,1740708653633,-500.0,0.00058082,120]
[354806351,1740708653643,-840.65,0.00058082,120]
[354806353,1740708653654,-500.0,0.00058082,120]
[354806355,1740708653666,-500.0,0.00058082,120]
[354806357,1740708653675,-500.0,0.00058082,120]
[354806359,1740708653684,-500.0,0.00058082,120]
[354806361,1740708653693,-500.0,0.00058082,120]
[354806370,1740708653702,-762.96,0.00058082,120]
[354806372,1740708653795,-815.25,0.00058082,120]
[354806374,1740708653805,-500.0,0.00058082,120]
[354806376,1740708653815,-500.0,0.00058082,120]
[354806378,1740708653824,-713.19,0.00058082,120]
[354806380,1740708653833,-500.0,0.00058082,120]
[354806382,1740708653843,-500.0,0.00058082,120]
[354806384,1740708653852,-500.0,0.00058082,120]
[354806386,1740708653861,-500.0,0.00058082,120]
[354806387,1740708653871,-1346.56,0.00058082,80]
[354806389,1740708653881,-1272.78,0.00058082,120]
[354806391,1740708653893,-2845.45,0.00058082,120]
[354806392,1740708653903,-792.5,0.00058082,120]
[354806393,1740708653913,-500.0,0.00058082,120]
[354806394,1740708653922,-500.0,0.00058082,120]
[354806395,1740708653933,-275.18724549,0.00058082,120]
[354806396,1740708653943,-1163.13,0.00058082,120]
[354806397,1740708653952,-500.0,0.00058082,120]
[354806398,1740708653962,-804.19,0.00058082,120]
[354806399,1740708653972,-825.4,0.00058082,120]
[354806400,1740708653981,-500.0,0.00058082,120]
[354806401,1740708653991,-3182.71,0.00058082,120]
[354806402,1740708654001,-4410.76,0.00058082,120]
[354806403,1740708654011,-242.4713023,0.00058082,120]
[354806404,1740708654020,-5592.61,0.00058082,120]
[354806405,1740708654030,-1251.39,0.00058082,120]
[354806406,1740708654039,-500.0,0.00058082,120]
[354806407,1740708654048,-500.0,0.00058082,120]
[354806408,1740708654058,-500.0,0.00058082,120]
[354806409,1740708654067,-1663.34,0.00058082,120]
[354806410,1740708654077,-506.68,0.00058082,120]
[354806412,1740708654086,-1657.91,0.00058082,120]
[354806414,1740708654096,-500.0,0.00058082,120]
[354806416,1740708654105,-980.46,0.00058082,120]
[354806418,1740708654114,-500.0,0.00058082,120]
[354806420,1740708654124,-588.72,0.00058082,120]
[354806422,1740708654133,-500.0,0.00058082,120]
[354806424,1740708654142,-649.83,0.00058082,120]
[354806426,1740708654152,-41368.51,0.00058082,7]
[354806428,1740708654161,-783.89,0.00058082,120]
[354806430,1740708654170,-715.34,0.00058082,120]
[354806432,1740708654179,-571.74,0.00058082,120]
[354806434,1740708654188,-737.26,0.00058082,120]
[354806436,1740708654197,-500.0,0.00058082,120]
[354806438,1740708654207,-599.26,0.00058082,120]
[354806440,1740708654216,-2085.65,0.00058082,120]
[354806442,1740708654226,-6593.63,0.00058082,7]
[354806444,1740708654235,-500.0,0.00058082,120]
[354806446,1740708654247,-500.0,0.00058082,120]
[354806448,1740708654256,-4095.1,0.00058082,120]
[354806450,1740708654266,-686.15,0.00058082,120]
[354806452,1740708654275,-151.97570243,0.00058082,120]
[354806454,1740708654284,-8480.39,0.00058082,120]
[354806456,1740708654294,-826.34,0.00058082,120]
[354806458,1740708654303,-500.0,0.00058082,120]
[354806460,1740708654312,-1860.24,0.00058082,120]
[354806462,1740708654321,-300.0,0.000586,32]
[354806464,1740708654331,-500.0,0.0005863,120]
[354806466,1740708654340,-500.0,0.0005863,120]
[354806468,1740708654352,-500.0,0.0005863,120]
[354806470,1740708654362,-500.0,0.0005863,120]
[354806472,1740708654371,-500.0,0.0005863,120]
[354806474,1740708654381,-500.0,0.0005863,120]
[354806476,1740708654390,-500.0,0.0005863,120]
[354806478,1740708654400,-500.0,0.0005863,120]
[354806480,1740708654409,-500.0,0.0005863,120]
[354806482,1740708654418,-500.0,0.0005863,120]
[354806484,1740708654427,-705.23,0.0005863,120]
[354806486,1740708654436,-500.0,0.0005863,120]
[354806488,1740708654446,-590.70591162,0.0005863,120]
[354806490,1740708654455,-500.0,0.0005863,120]
[354806492,1740708654465,-500.0,0.0005863,120]
[354806494,1740708654474,-548.2,0.0005863,120]
[354806496,1740708654483,-567.02,0.0005863,120]
[354806498,1740708654492,-500.0,0.0005863,120]
[354806500,1740708654502,-500.0,0.0005863,120]
[354806502,1740708654511,-500.0,0.0005863,120]
[354806504,1740708654521,-840.65,0.0005863,120]
[354806506,1740708654530,-500.0,0.0005863,120]
[354806508,1740708654539,-575.67,0.0005863,120]
[354806510,1740708654548,-237.04,0.0005863,120]
[354806512,1740708654557,-500.0,0.0005863,120]
[354806514,1740708654566,-500.0,0.0005863,120]
[354806516,1740708654575,-762.96,0.0005863,120]
[354806518,1740708654585,-815.25,0.0005863,120]
[354806520,1740708654593,-500.0,0.0005863,120]
[354806521,1740708654602,-500.0,0.0005863,120]
[354806524,1740708654612,-713.19,0.0005863,120]
[354806526,1740708654621,-500.0,0.0005863,120]
[354806528,1740708654630,-500.0,0.0005863,120]
[354806529,1740708654639,-500.0,0.0005863,120]
[354806532,1740708654649,-500.0,0.0005863,120]
[354806533,1740708654659,-1346.56,0.0005863,85]
[354806535,1740708654669,-1272.78,0.0005863,120]
[354806537,1740708654679,-2845.45,0.0005863,120]
[354806539,1740708654689,-792.5,0.0005863,120]
[354806541,1740708654699,-500.0,0.0005863,120]
[354806543,1740708654709,-500.0,0.0005863,120]
[354806546,1740708654718,-1163.13,0.0005863,120]
[354806548,1740708654728,-500.0,0.0005863,120]
[354806549,1740708654737,-804.19,0.0005863,120]
[354806552,1740708654748,-825.4,0.0005863,120]
[354806553,1740708654758,-500.0,0.0005863,120]
[354806555,1740708654769,-3182.71,0.0005863,120]
[354806558,1740708654779,-4410.76,0.0005863,120]
[354806560,1740708654789,-5592.61,0.0005863,120]
[354806562,1740708654798,-1251.39,0.0005863,120]
[354806563,1740708654807,-500.0,0.0005863,120]
[354806566,1740708654816,-195.67617097,0.0005863,120]
[354806567,1740708654825,-500.0,0.0005863,120]
[354806569,1740708654836,-1663.34,0.0005863,120]
[354806571,1740708654846,-506.68,0.0005863,120]
[354806573,1740708654857,-1657.91,0.0005863,120]
[354806576,1740708654867,-500.0,0.0005863,120]
[354806578,1740708654881,-980.46,0.0005863,120]
[354806580,1740708654892,-500.0,0.0005863,120]
[354806581,1740708654902,-588.72,0.0005863,120]
[354806582,1740708654912,-500.0,0.0005863,120]
[354806583,1740708654923,-649.83,0.0005863,120]
[354806584,1740708654932,-41368.51,0.0005863,7]
[354806585,1740708654942,-783.89,0.0005863,120]
[354806586,1740708654952,-715.34,0.0005863,120]
[354806588,1740708654961,-571.74,0.0005863,120]
[354806590,1740708654971,-737.26,0.0005863,120]
[354806591,1740708654980,-500.0,0.0005863,120]
[354806593,1740708654989,-599.26,0.0005863,120]
[354806595,1740708655002,-2085.65,0.0005863,120]
[354806597,1740708655011,-6593.63,0.0005863,7]
[354806598,1740708655020,-257.04253048,0.0005863,120]
[354806599,1740708655030,-500.0,0.0005863,120]
[354806600,1740708655039,-4095.1,0.0005863,120]
[354806601,1740708655048,-686.15,0.0005863,120]
[354806602,1740708655058,-8480.39,0.0005863,120]
[354806603,1740708655067,-826.34,0.0005863,120]
[354806604,1740708655076,-339.42380787,0.0005863,120]
[354806605,1740708655085,-1860.24,0.0005863,120]
[354806606,1740708655094,-274.0,0.00059,120]
[354806607,1740708655103,-157122.78331493,0.00059,30]
[354806686,1740708727882,3935.22813677,0.00040378,2]
[354806690,1740708831507,10000.0,0.00052613,30]
[354806691,1740708876531,342.31,0.00052613,30]
[354806692,1740708893404,206.80252657,0.00035361,2]
[354806693,1740709028883,500.0,0.0004,2]
[354806695,1740709075262,500.0,0.00052613,30]
[354806696,1740709109303,500.0,0.0005259,30]
[354806697,1740709264110,-416.04263603,0.00040378,2]
[354806698,1740709307270,-179.979981,0.00044114,2]
[354806699,1740709316876,500.0,0.0005259,30]
[354806700,1740709323889,500.0,0.0005259,30]
[354806701,1740709334196,500.0,0.0005259,120]
[354806702,1740709342545,500.0,0.0005259,120]
[354806703,1740709349783,-1120.0,0.0004482,2]
[354806704,1740709445486,500.0,0.0005259,120]
[354806711,1740709538111,-8997.79146294,0.0004482,2]
[354806712,1740709541077,-1997.62407986,0.0004482,2]
[354806713,1740709541099,-380.77667983,0.000488,120]
[354806717,1740709586314,17245.63256006,0.0004,2]
[354806720,1740709650136,-1413.1863937,0.000488,120]
[354806721,1740709650174,-207.70211038,0.000489,11]
[354806722,1740709650199,-274.0,0.00049,120]
[354806723,1740709650222,-1460.79046802,0.0005,120]
[354806724,1740709650247,-274.0,0.00051,120]
[354806725,1740709650269,-165.0,0.00051,120]
[354806726,1740709650292,-160.0,0.00051327,2]
[354806727,1740709650315,-4999.97,0.0005259,30]
[354806728,1740709650336,-2048.26695572,0.0005259,30]
[354806729,1740709650357,-188.85507866,0.0005259,30]
[354806730,1740709650381,-1411.89878785,0.00052975,2]
[354806731,1740709650404,-79.66025067,0.00053,120]
[354806732,1740709650503,1000.0,0.0004,2]
[354806733,1740709652094,-194.33974933,0.00053,120]
[354806734,1740709652115,-673.28,0.00053399,30]
[354806735,1740709652139,-465.35,0.000534,51]
[354806736,1740709652163,-30.61648149,0.000534,51]
[354806741,1740709670767,15256.14262898,0.0005259,120]
[354806752,1740709712680,326.69206919,0.00023,60]
[354806757,1740709717193,1299.55875953,0.0005259,90]
[354806758,1740709718252,248.71943001,0.000325,30]
[354806759,1740709719065,2274.98441435,0.000145,2]
[354806760,1740709719100,59566.53951636,0.000145,2]
[354806761,1740709720722,47690.08564267,0.00018,15]
[354806763,1740709725002,1390.01111327,0.0002023,2]
[354806764,1740709747082,-901.37104938,0.00046,2]
[354806765,1740709747102,-1399.44519645,0.00052,120]
[354806771,1740709767092,-7265.8670185,0.000526,30]
[354806819,1740709832422,-631.98987529,0.0005249,120]
[354806833,1740709838085,-555.1421661,0.0005249,120]
[354806969,1740709843075,-248.03841745,0.0005249,120]
[354806970,1740709843085,-20011.7555406,0.0005259,2]
[354806977,1740709843592,-999.75460699,0.0005259,2]
[354806981,1740709844643,-264.26675108,0.0005259,2]
[354806997,1740709846817,-393.21,0.0005259,2]
[354806998,1740709846840,-109.928,0.0005259,2]
[354806999,1740709900781,158.0,0.000499,120]
[354807000,1740709913728,276.67025875,0.00052,120]
[354807001,1740709930315,178.1640546,0.00032877,2]
[354807002,1740709931907,151.0,0.00045,120]
[354807003,1740709932654,3365.95131465,0.00043286,2]
[354807004,1740709932675,5262.97675048,0.00043286,2]
[354807005,1740709932698,1319.65107097,0.00043286,2]
[354807008,1740710134317,426.62974125,0.00052219,120]
[354807009,1740710224845,500.0,0.00027,30]
[354807013,1740710532523,500.0,0.00027,30]
[354807016,1740710826256,-175.28700473,0.00042492,2]
[354807017,1740710826278,-196.441603,0.00043286,2]
[354807018,1740710826299,-175.28700473,0.0004358,2]
[354807019,1740710826320,-931.8248201,0.00045626,120]
[354807020,1740710826341,-627.82104845,0.0005,120]
[354807021,1740710826362,-700.0,0.00051999,15]
[354807022,1740710826382,-5000.0,0.00052,2]
[354807023,1740710826403,-4081.98987529,0.00052,2]
[354807024,1740710826424,-1410.23281324,0.00052429,28]
[354807025,1740710826445,-154.34294638,0.000525,2]
[354807026,1740710826469,-176.75,0.00052519,30]
[354807027,1740710826495,-1606.59,0.00052519,30]
[354807028,1740710826519,-1338.82,0.00052519,30]
[354807029,1740710826541,-152.08,0.00052519,2]
[354807030,1740710826563,-152.08,0.00052519,2]
[354807031,1740710826584,-152.08,0.00052519,2]
[354807032,1740710826605,-999.73089517,0.00052524,11]
[354807033,1740710826635,-1038.1,0.00052525,30]
[354807034,1740710826657,-19744.19,0.00052525,10]
[354807035,1740710826680,-1338.82,0.00052525,30]
[354807036,1740710826705,-16453.49,0.00052525,10]
[354807037,1740710826725,-892.55,0.00052525,30]
[354807038,1740710826753,-13711.24,0.00052525,10]
[354807039,1740710826774,-743.79,0.00052525,30]
[354807040,1740710826796,-218.43,0.00052529,96]
[354807041,1740710826818,-3813.634621,0.00052529,120]
[354807042,1740710826839,-10000.0,0.00052529,30]
[354807043,1740710826858,-7356.43,0.00052529,30]
[354807044,1740710826878,-10000.0,0.00052529,30]
[354807045,1740710826899,-307.98628014,0.00052573,10]
[354807046,1740710826919,-500.0,0.00052573,10]
[354807047,1740710826940,-500.82690177,0.00052573,10]
[354807048,1740710826961,-500.0,0.00052573,7]
[354807049,1740710826988,-4965.13978265,0.000526,30]
[354807050,1740710827012,-300.0,0.000526,28]
[354807051,1740710827038,-1000.0,0.000526,90]
[354807052,1740710827061,-645.22,0.00052602,30]
[354807053,1740710827082,-158.0,0.000528,120]
[354807054,1740710827107,-201.08907163,0.000529,12]
[354807055,1740710827129,-5000.0,0.00053,120]
[354807056,1740710827151,-645.22,0.0005315,35]
[354807057,1740710827172,-154.34294634,0.000532,2]
[354807058,1740710827198,-460.39,0.000534,51]
[354807059,1740710827222,-460.39,0.000534,51]
[354807060,1740710827250,-460.39,0.000534,51]
[354807061,1740710827274,-460.39,0.000534,51]
[354807062,1740710827298,-460.39,0.000534,51]
[354807063,1740710827325,-460.39,0.000534,51]
[354807064,1740710827351,-460.39,0.000534,51]
[354807065,1740710827376,-460.39,0.000534,51]
[354807066,1740710827402,-460.39,0.000534,51]
[354807067,1740710827428,-124.28059538,0.000534,51]
[354807068,1740710829127,-179.63558728,0.00052525,10]
[354807069,1740710832102,-304.21238121,0.00052525,10]
[354807070,1740710832132,-269.81332342,0.00052525,10]
[354807089,1740710947320,-5032.57298759,0.00052435,120]
[354807090,1740710947477,-405.6909224,0.000525,120]
[354807091,1740710947500,-700.0,0.00052533,15]
[354807092,1740710947523,-5980.67,0.00052534,120]
[354807093,1740710947550,-336.10940462,0.000534,51]
[354807094,1740710947574,-460.39,0.000534,51]
[354807095,1740710947603,-460.39,0.000534,51]
[354807096,1740710947623,-500.0,0.000534,51]
[354807097,1740710947646,-500.0,0.000534,51]
[354807098,1740710947670,-518.56006587,0.000534,51]
[354807099,1740710947692,-1290.98222564,0.000535,120]
[354807100,1740710947716,-645.22,0.00053698,40]
[354807101,1740710947739,-182.0,0.000537,120]
[354807102,1740710947761,-1095.8845982,0.00054,120]
[354807103,1740710947782,-668.09186247,0.00054,120]
[354807104,1740710947803,-385.141268,0.000541,29]
[354807105,1740710947825,-645.22,0.00054246,45]
[354807106,1740710947852,-1000.0,0.00054545,120]
[354807107,1740710947874,-1000.0,0.00054573,120]
[354807108,1740710947894,-1803.35843211,0.00054576,2]
[354807109,1740710947916,-1000.0,0.000546,120]
[354807110,1740710947937,-221.13668597,0.00054627,120]
[354807111,1740710947961,-500.0,0.00054794,120]
[354807112,1740710947984,-503.82967992,0.00054794,120]
[354807113,1740710948006,-500.82296178,0.00054794,120]
[354807114,1740710948029,-508.7567627,0.00054794,120]
[354807115,1740710948051,-645.22,0.00054794,50]
[354807116,1740710948075,-500.0,0.00054794,120]
[354807117,1740710948100,-500.0,0.00054794,120]
[354807118,1740710948121,-500.0,0.00054794,120]
[354807119,1740710948143,-500.0,0.00054794,120]
[354807120,1740710948166,-511.69057716,0.00054794,120]
[354807121,1740710948187,-500.0,0.00054794,120]
[354807122,1740710948208,-500.0,0.00054794,120]
[354807123,1740710948230,-500.0,0.00054794,120]
[354807124,1740710948250,-500.0,0.00054794,120]
[354807125,1740710948270,-500.0,0.00054794,120]
[354807126,1740710948290,-500.0,0.00054794,120]
[354807127,1740710948311,-500.0,0.00054794,120]
[354807128,1740710948332,-500.0,0.00054794,120]
[354807129,1740710948357,-500.0,0.00054794,120]
[354807130,1740710948377,-274.0,0.00055,120]
[354807131,1740710948399,-165.0,0.00055,120]
[354807132,1740710948420,-154.34294634,0.0005514,2]
[354807133,1740710948442,-154.34294634,0.0005522,2]